bitfinex/quotes_BTCUSD_20250408
["timestamp","ask_amount","ask_price","bid_price","bid_amount"]
[1744156288227,1.07279882,76447.0,76446.0,0.04765956]
[1744156288427,1.04313712,76447.0,76446.0,0.02888199]
[1744156288655,1.04313712,76447.0,76446.0,9.9e-07]
[1744156288784,1.04313712,76447.0,76402.0,0.177408]
[1744156288785,0.013087,76409.0,76402.0,0.177408]
[1744156288983,0.013087,76409.0,76403.0,0.34919941]
[1744156289185,0.00283541,76408.0,76406.0,0.209407]
[1744156289392,0.222468,76415.0,76408.0,0.209402]
[1744156289597,0.222468,76415.0,76407.0,0.013087]
[1744156289598,0.222476,76413.0,76407.0,0.013087]
[1744156290000,0.20939,76413.0,76408.0,0.013087]
[1744156290402,0.20939,76413.0,76408.0,0.222486]
[1744156291343,0.22261149,76413.0,76408.0,0.222486]
[1744156291569,0.209393,76412.0,76408.0,0.014]
[1744156291708,0.013087,76411.0,76408.0,0.014]
[1744156291914,0.01322149,76413.0,76408.0,0.014]
[1744156292114,0.222473,76414.0,76408.0,0.014]
[1744156292324,0.222473,76414.0,76407.0,0.22249]
[1744156292763,0.222473,76414.0,76408.0,0.007]
[1744156293750,0.222473,76414.0,76408.0,0.014]
[1744156294147,0.222473,76414.0,76409.0,0.209399]
[1744156294427,0.0136958,76414.0,76413.0,0.013086]
[1744156294629,0.209372,76419.0,76415.0,0.013086]
[1744156294832,0.34,76420.0,76415.0,0.222466]
[1744156295438,0.549371,76420.0,76415.0,0.222466]
[1744156295957,0.0488,76432.0,76409.0,0.005]
[1744156296156,0.34,76425.0,76419.0,0.013085]
[1744156296334,0.34,76425.0,76420.0,0.222454]
[1744156296835,0.34,76425.0,76422.0,0.209362]
[1744156297038,0.34,76429.0,76428.0,0.209347]
[1744156297244,0.01334497,76425.0,76421.0,0.013085]
[1744156297384,0.20935,76427.0,76421.0,0.222449]
[1744156297596,0.013085,76418.0,76409.0,0.013087]
[1744156297800,0.013086,76415.0,76410.0,0.209395]
[1744156297998,0.013086,76416.0,76410.0,0.222482]
[1744156298200,0.01312801,76416.0,76411.0,0.013087]
[1744156298397,4.201e-05,76416.0,76413.0,0.013086]
[1744156298711,4.201e-05,76416.0,76412.0,0.209391]
[1744156299117,4.201e-05,76416.0,76413.0,0.222472]
[1744156300346,4.201e-05,76416.0,76414.0,0.222469]
[1744156300547,4.201e-05,76416.0,76403.0,0.209413]
[1744156300548,0.209402,76408.0,76403.0,0.209413]
[1744156300749,0.209402,76408.0,76400.0,0.209421]
[1744156300948,0.209402,76408.0,76401.0,0.209419]
[1744156301445,0.013088,76403.0,76394.0,0.01309]
[1744156301644,0.222504,76403.0,76395.0,0.222524]
[1744156301960,0.222504,76403.0,76391.0,0.222537]
[1744156301961,0.209426,76400.0,76393.0,0.222533]
[1744156302163,0.01595799,76402.0,76393.0,0.222533]
[1744156302164,0.00286999,76402.0,76395.0,0.222526]
[1744156302330,0.00280129,76399.0,76396.0,0.013089]
[1744156302530,0.013088,76401.0,76393.0,0.01309]
[1744156302855,0.209429,76399.0,76394.0,0.004]
[1744156303055,0.209429,76399.0,76394.0,0.213438]
[1744156303297,0.0029044,76398.0,76394.0,0.226528]
[1744156303920,0.0029044,76398.0,76394.0,0.222528]
[1744156304233,0.2260113,76398.0,76392.0,0.01309]
[1744156304551,0.2260113,76398.0,76383.0,0.013091]
[1744156304552,0.01309,76391.0,76383.0,0.013091]
[1744156304671,0.209451,76390.0,76384.0,0.222558]
[1744156304870,0.209451,76390.0,76386.0,0.209462]
[1744156305115,0.00382136,76389.0,76386.0,0.209462]
[1744156305285,0.00382136,76389.0,76386.0,0.222553]
[1744156305668,0.209451,76391.0,76386.0,0.222553]
[1744156305873,0.21327736,76388.0,76381.0,0.209475]
[1744156306121,0.20949199,76391.0,76385.0,0.209465]
[1744156306328,0.00382136,76387.0,76385.0,0.222556]
[1744156306502,0.20949199,76391.0,76385.0,0.222556]
[1744156306711,0.00382136,76386.0,76385.0,0.222556]
[1744156306966,4.199e-05,76391.0,76387.0,0.209459]
[1744156307171,4.199e-05,76391.0,76390.0,0.209451]
[1744156307308,4.199e-05,76391.0,76390.0,0.222541]
[1744156308374,4.199e-05,76391.0,76390.0,0.225541]
[1744156308730,0.20948999,76391.0,76390.0,0.003]
[1744156308926,0.76081443,76391.0,76390.0,0.003]
[1744156309149,0.562547,76388.0,76387.0,0.004]
[1744156309350,0.209501,76372.0,76367.0,0.209512]
[1744156309481,0.209506,76371.0,76366.0,0.222608]
[1744156309678,0.209501,76372.0,76366.0,0.222608]
[1744156309885,0.209495,76374.0,76367.0,0.222606]
[1744156310104,0.2095,76373.0,76367.0,0.222606]
[1744156310506,0.209495,76374.0,76369.0,0.209508]
[1744156310710,0.209495,76374.0,76368.0,0.013094]
[1744156310908,0.209495,76374.0,76368.0,0.222603]
[1744156311228,0.00370622,76373.0,76369.0,0.2226]
[1744156311633,0.00370622,76373.0,76371.0,0.209503]
[1744156311839,0.34,76382.0,76377.0,0.209486]
[1744156312041,0.34,76386.0,76383.0,0.222559]
[1744156312241,0.34,76386.0,76385.0,0.222556]
[1744156312643,4.199e-05,76391.0,76385.0,0.222556]
[1744156312644,4.199e-05,76391.0,76389.0,0.222542]
[1744156312849,4.199e-05,76391.0,76390.0,0.01309]
[1744156313204,4.199e-05,76391.0,76381.0,0.209475]
[1744156313205,0.34,76390.0,76381.0,0.209475]
[1744156313425,0.211462,76386.0,76379.0,0.222571]
[1744156313627,0.002,76386.0,76379.0,0.222571]
[1744156313828,0.002,76386.0,76382.0,0.013092]
[1744156313986,0.34,76388.0,76383.0,0.222559]
[1744156315805,4.199e-05,76391.0,76386.0,0.013091]
[1744156316007,4.199e-05,76391.0,76388.0,0.013091]
[1744156316351,4.199e-05,76391.0,76387.0,0.013091]
[1744156317048,4.199e-05,76391.0,76362.0,0.209526]
[1744156317049,0.20951,76369.0,76362.0,0.209526]
[1744156317247,0.209514,76368.0,76362.0,0.12625864]
[1744156317507,0.209517,76366.0,76362.0,0.12625864]
[1744156317851,0.209506,76370.0,76364.0,0.013095]
[1744156318293,0.209506,76370.0,76365.0,0.013095]
[1744156318691,0.209506,76370.0,76365.0,0.01353377]
[1744156318915,0.209503,76371.0,76366.0,0.209515]
[1744156319516,0.209497,76374.0,76368.0,0.209511]
[1744156319715,0.209501,76372.0,76368.0,0.209511]
[1744156320302,0.209497,76374.0,76368.0,0.209511]
[1744156320935,0.35590042,76380.0,76373.0,0.013093]
[1744156321176,0.34,76379.0,76378.0,0.222575]
[1744156321800,0.34,76389.0,76380.0,0.013092]
[1744156321998,0.34,76390.0,76384.0,0.209467]
[1744156322242,0.34,76390.0,76389.0,0.01309]
[1744156322470,0.01376023,76398.0,76389.0,0.01309]
[1744156322655,0.01376023,76398.0,76394.0,0.01309]
[1744156322913,0.01376023,76398.0,76388.0,0.209456]
[1744156322914,0.01309,76391.0,76384.0,0.12625864]
[1744156323126,0.013089,76397.0,76384.0,0.12625864]
[1744156323127,0.209447,76392.0,76385.0,0.013091]
[1744156323334,0.209447,76392.0,76386.0,0.20946]
[1744156323547,0.00355897,76391.0,76386.0,0.20946]
[1744156323728,0.00355897,76391.0,76387.0,0.209458]
[1744156324159,0.21300897,76391.0,76385.0,0.00043877]
[1744156324404,0.013091,76386.0,76385.0,0.00043877]
[1744156324636,0.47934964,76386.0,76385.0,0.00043877]
[1744156324860,0.47934964,76386.0,76362.0,0.013095]
[1744156324861,0.209515,76367.0,76362.0,0.013095]
[1744156325120,0.20952,76365.0,76362.0,0.00041976]
[1744156325338,0.013095,76363.0,76362.0,0.00041976]
[1744156325822,0.14290564,76363.0,76362.0,0.00041976]
[1744156326045,0.0300529,76363.0,76362.0,0.00041976]
[1744156326907,0.55675239,76363.0,76362.0,0.00041976]
[1744156327101,0.54221154,76363.0,76362.0,0.00041976]
[1744156327307,0.70657154,76363.0,76362.0,0.00041976]
[1744156327512,0.70657154,76363.0,76362.0,0.00641976]
[1744156327730,0.70657154,76363.0,76362.0,0.00041976]
[1744156330248,0.5803129,76363.0,76362.0,0.00041976]
[1744156332015,0.5344129,76363.0,76362.0,0.00041976]
[1744156335266,0.5213179,76363.0,76362.0,0.00041976]
[1744156336363,0.3569579,76363.0,76362.0,0.00041976]
[1744156336911,0.3700529,76363.0,76362.0,0.00041976]
[1744156337574,0.3569579,76363.0,76362.0,0.00041976]
[1744156337698,0.3700529,76363.0,76362.0,0.00041976]
[1744156338332,0.209561,76350.0,76344.0,0.222674]
[1744156338536,0.00333703,76349.0,76345.0,0.12625864]
[1744156338936,0.209561,76350.0,76345.0,0.12625864]
[1744156339590,0.209572,76346.0,76344.0,0.00713013]
[1744156340118,0.00333703,76345.0,76344.0,0.00013013]
[1744156341233,0.00333703,76345.0,76344.0,0.00413013]
[1744156342402,0.00333703,76345.0,76344.0,0.00813013]
[1744156344498,0.01643503,76345.0,76344.0,0.00813013]
[1744156345808,0.01643503,76345.0,76344.0,0.00413013]
[1744156346007,0.01643503,76345.0,76344.0,0.00013013]
[1744156346231,0.01643503,76345.0,76344.0,0.00113013]
[1744156346370,0.35643503,76345.0,76344.0,0.00213013]
[1744156346594,0.53219367,76345.0,76344.0,0.00213013]
[1744156347109,0.40593503,76345.0,76344.0,0.00213013]
[1744156347256,0.35643503,76345.0,76344.0,0.00213013]
[1744156350968,0.08643712,76345.0,76344.0,0.00213013]
[1744156351176,0.01590215,76345.0,76344.0,0.00213013]
[1744156352445,0.14216079,76345.0,76344.0,0.00213013]
[1744156352773,0.19136079,76345.0,76344.0,0.00213013]
[1744156357852,0.06510215,76345.0,76344.0,0.00213013]
[1744156358207,0.06510215,76345.0,76337.0,8e-05]
[1744156358208,0.222693,76338.0,76337.0,8e-05]
[1744156358382,0.222693,76338.0,76337.0,0.00049866]
[1744156358383,0.36349249,76338.0,76337.0,0.00049866]
[1744156358674,0.36639823,76338.0,76337.0,0.00049866]
[1744156359078,0.53075823,76338.0,76337.0,0.00049866]
[1744156359297,0.51621738,76338.0,76337.0,0.00049866]
[1744156360104,0.51721738,76338.0,76337.0,0.00049866]
[1744156361942,0.21349974,76338.0,76337.0,0.00049866]
[1744156362154,0.22659874,76338.0,76337.0,0.00049866]
[1744156364746,0.00390574,76338.0,76337.0,0.00049866]
[1744156365549,0.01700474,76338.0,76337.0,0.00049866]
[1744156366196,0.01900474,76338.0,76337.0,0.00049866]
[1744156366505,0.01600474,76338.0,76337.0,0.00049866]
[1744156366710,0.01900474,76338.0,76337.0,0.00049866]
[1744156367989,0.00590574,76338.0,76337.0,0.00049866]
[1744156368178,0.01900474,76338.0,76337.0,0.00049866]
[1744156369224,0.00590574,76338.0,76337.0,0.00049866]
[1744156370082,0.00590574,76338.0,76337.0,0.01359766]
[1744156370083,0.003,76338.0,76337.0,0.01359766]
[1744156370251,0.003,76338.0,76337.0,0.11129766]
[1744156370760,0.002,76338.0,76337.0,0.11129766]
[1744156370986,0.002,76338.0,76337.0,0.2375563]
[1744156371280,0.209571,76347.0,76342.0,0.20958]
[1744156371484,0.209571,76347.0,76342.0,0.222678]
[1744156371685,0.209574,76346.0,76341.0,0.222684]
[1744156372305,0.209545,76356.0,76350.0,0.209561]
[1744156372513,0.209567,76348.0,76343.0,0.013098]
[1744156372710,0.209555,76352.0,76345.0,0.209573]
[1744156373230,0.209563,76350.0,76345.0,0.209573]
[1744156373655,0.209563,76350.0,76345.0,0.222671]
[1744156373815,0.209565,76349.0,76344.0,0.013098]
[1744156374018,0.209565,76349.0,76344.0,0.222674]
[1744156374345,0.209547,76355.0,76345.0,0.013098]
[1744156374641,0.209541,76358.0,76353.0,0.0496]
[1744156374783,0.222627,76361.0,76355.0,0.209547]
[1744156374978,0.209523,76364.0,76359.0,0.209536]
[1744156375185,0.209555,76353.0,76348.0,0.222661]
[1744156375422,0.1043724,76367.0,76349.0,0.33582164]
[1744156375648,0.013095,76364.0,76353.0,0.209552]
[1744156375797,0.209533,76361.0,76356.0,0.222639]
[1744156376262,0.209538,76359.0,76355.0,0.013096]
[1744156376763,0.013096,76358.0,76352.0,0.013097]
[1744156376910,0.222639,76357.0,76349.0,0.34891864]
[1744156377109,0.209548,76355.0,76349.0,0.34891864]
[1744156377311,0.209552,76354.0,76348.0,0.209565]
[1744156377507,0.209552,76354.0,76349.0,0.013097]
[1744156377908,0.209549,76355.0,76350.0,0.209559]
[1744156379467,0.209552,76354.0,76350.0,0.002]
[1744156379670,0.209552,76354.0,76352.0,0.001]
[1744156380080,0.209552,76354.0,76350.0,0.002]
[1744156380486,0.209552,76354.0,76350.0,0.213561]
[1744156380685,0.209552,76354.0,76350.0,0.226658]
[1744156380882,0.209552,76354.0,76350.0,0.224658]
[1744156381271,0.209552,76354.0,76350.0,0.222658]
[1744156381521,0.209552,76354.0,76350.0,0.224658]
[1744156382169,0.209552,76354.0,76350.0,0.226658]
[1744156382582,0.209541,76358.0,76353.0,0.222649]
[1744156382826,0.209541,76358.0,76352.0,0.013097]
[1744156383537,0.209541,76358.0,76353.0,0.222647]
[1744156383682,0.209535,76360.0,76355.0,0.209545]
[1744156384109,0.209531,76361.0,76354.0,0.013096]
[1744156384286,0.209536,76360.0,76353.0,0.013097]
[1744156384502,0.209542,76357.0,76353.0,0.013097]
[1744156384906,0.209546,76356.0,76352.0,0.013097]
[1744156385107,0.209552,76354.0,76348.0,0.222662]
[1744156385550,0.00190843,76353.0,76352.0,0.001]
[1744156386099,0.00190843,76353.0,76350.0,0.209561]
[1744156386283,0.209559,76351.0,76348.0,0.004]
[1744156386483,0.209557,76352.0,76348.0,0.213565]
[1744156386876,0.00190843,76351.0,76348.0,0.212565]
[1744156387468,0.00190843,76351.0,76348.0,0.209565]
[1744156387880,0.00190843,76351.0,76350.0,0.222658]
[1744156388261,0.001,76353.0,76349.0,0.209563]
[1744156388457,0.001,76353.0,76345.0,0.222671]
[1744156388458,0.00194283,76351.0,76345.0,0.222671]
[1744156388696,0.209561,76351.0,76347.0,0.209569]
[1744156388999,0.21136722,76350.0,76348.0,0.002]
[1744156389388,0.209566,76349.0,76342.0,0.22268]
[1744156389576,0.209569,76347.0,76342.0,0.34893864]
[1744156389776,0.209569,76347.0,76345.0,0.002]
[1744156389988,0.0021497,76346.0,76345.0,0.002]
[1744156390188,0.209566,76349.0,76345.0,0.002]
[1744156390414,0.00218403,76348.0,76345.0,0.002]
[1744156390963,0.00218403,76348.0,76347.0,0.013098]
[1744156391300,0.209549,76355.0,76350.0,0.209559]
[1744156392117,0.209552,76354.0,76350.0,0.209559]
[1744156393719,0.210549,76355.0,76350.0,0.209559]
[1744156394033,0.209549,76355.0,76350.0,0.209559]
[1744156394460,0.001,76354.0,76350.0,0.209559]
[1744156394664,0.210552,76354.0,76350.0,0.209559]
[1744156394865,0.210552,76354.0,76349.0,0.013097]
[1744156394866,0.001,76354.0,76352.0,0.013097]
[1744156395379,0.001,76354.0,76351.0,0.209556]
[1744156395784,0.209549,76355.0,76350.0,0.013097]
[1744156396372,0.209547,76356.0,76350.0,0.013097]
[1744156396568,0.209548,76355.0,76350.0,0.222655]
[1744156396970,0.001,76354.0,76351.0,0.222653]
[1744156397419,0.209547,76356.0,76351.0,0.222653]
[1744156397571,0.210547,76356.0,76351.0,0.222653]
[1744156397784,0.00204607,76355.0,76354.0,0.013096]
[1744156397984,0.3138884,76367.0,76366.0,0.013094]
[1744156397985,0.1043724,76367.0,76366.0,0.013094]
[1744156398218,0.1043724,76367.0,76366.0,0.222611]
[1744156399272,0.1043724,76367.0,76366.0,0.34900021]
[1744156400610,0.1053724,76367.0,76366.0,0.34900021]
[1744156400787,0.1043724,76367.0,76366.0,0.34900021]
[1744156401247,0.1053724,76367.0,76366.0,0.34900021]
[1744156401586,0.1184664,76367.0,76366.0,0.00013057]
[1744156401806,0.1053724,76367.0,76366.0,0.00013057]
[1744156402360,0.1184664,76367.0,76366.0,0.00013057]
[1744156405045,0.1053724,76367.0,76366.0,0.01322457]
[1744156406027,0.1053724,76367.0,76366.0,0.13948321]
[1744156406924,0.1053724,76367.0,76366.0,0.12638921]
[1744156407128,0.1664664,76367.0,76366.0,0.00013057]
[1744156411399,0.63272504,76367.0,76366.0,0.00013057]
[1744156412747,0.67340817,76367.0,76366.0,0.00013057]
[1744156415660,0.63272504,76367.0,76366.0,0.00013057]
[1744156415867,0.5064664,76367.0,76366.0,0.00013057]
[1744156416038,0.4584664,76367.0,76366.0,0.00013057]
[1744156417081,0.4574664,76367.0,76366.0,0.00013057]
[1744156417277,0.4604664,76367.0,76366.0,0.00113057]
[1744156417461,0.4624664,76367.0,76366.0,0.00213057]
[1744156417660,0.4594664,76367.0,76366.0,0.00113057]
[1744156417889,0.4604664,76367.0,76366.0,0.00113057]
[1744156418191,0.4624664,76367.0,76366.0,0.00213057]
[1744156423146,0.005,76367.0,76366.0,0.00213057]
[1744156424754,0.018094,76367.0,76366.0,0.00213057]
[1744156425524,0.15889349,76367.0,76366.0,0.00213057]
[1744156426071,0.018094,76367.0,76366.0,0.00213057]
[1744156427313,0.182134,76367.0,76366.0,0.00213057]
[1744156428175,0.30839264,76367.0,76366.0,0.00213057]
[1744156428934,0.182134,76367.0,76366.0,0.00213057]
[1744156429138,0.358094,76367.0,76366.0,0.00213057]
[1744156429551,0.05603598,76367.0,76366.0,0.00213057]
[1744156429753,0.209513,76368.0,76366.0,0.00113057]
[1744156430085,0.13935264,76367.0,76366.0,0.00013057]
[1744156430741,0.14135264,76367.0,76366.0,0.00113057]
[1744156431104,0.14435264,76367.0,76366.0,0.00213057]
[1744156431309,0.018094,76367.0,76366.0,0.00213057]
[1744156433215,0.358094,76367.0,76366.0,0.00213057]
[1744156433419,0.005,76367.0,76366.0,0.00213057]
[1744156433644,0.018094,76367.0,76366.0,0.00213057]
[1744156434226,0.355094,76367.0,76366.0,0.00113057]
[1744156434425,0.34,76367.0,76366.0,0.00013057]
[1744156435580,0.549513,76368.0,76366.0,0.00013057]
[1744156436155,0.562607,76368.0,76366.0,0.00013057]
[1744156436357,0.013094,76367.0,76366.0,0.00013057]
[1744156436894,0.13935264,76367.0,76366.0,0.00013057]
[1744156437093,0.18685264,76367.0,76366.0,0.00013057]
[1744156437324,0.013094,76367.0,76366.0,0.00013057]
[1744156437685,0.18685264,76367.0,76366.0,0.00013057]
[1744156438346,0.060594,76367.0,76366.0,0.00013057]
[1744156439729,0.063594,76367.0,76366.0,0.00113057]
[1744156439906,0.19285264,76367.0,76366.0,0.00213057]
[1744156440116,0.19285264,76367.0,76366.0,0.00113057]
[1744156440117,0.18985264,76367.0,76366.0,0.00113057]
[1744156440566,0.19285264,76367.0,76366.0,0.00213057]
[1744156441714,0.31075991,76367.0,76366.0,0.00213057]
[1744156442119,0.27006223,76367.0,76366.0,0.00213057]
[1744156442488,0.31075721,76367.0,76366.0,0.00213057]
[1744156442732,0.23354762,76367.0,76366.0,0.00213057]
[1744156442928,0.19285264,76367.0,76366.0,0.00213057]
[1744156445157,0.19285264,76367.0,76341.0,0.0456]
[1744156445158,0.209583,76342.0,76341.0,0.0456]
[1744156445471,0.209572,76346.0,76341.0,0.04572576]
[1744156445765,0.013097,76350.0,76341.0,0.04572576]
[1744156445766,0.209576,76345.0,76341.0,0.04572576]
[1744156446115,0.209583,76342.0,76341.0,0.00012576]
[1744156446535,0.209583,76342.0,76341.0,0.00612576]
[1744156446939,0.209583,76342.0,76341.0,0.00312576]
[1744156447560,0.209583,76342.0,76341.0,0.00512576]
[1744156447761,0.209583,76342.0,76341.0,0.00212576]
[1744156448724,0.562681,76342.0,76341.0,0.00212576]
[1744156449076,0.88003594,76342.0,76341.0,0.00012576]
[1744156449374,0.88203594,76342.0,76341.0,0.00012576]
[1744156450784,0.75578049,76342.0,76341.0,0.00012576]
[1744156450989,0.70748049,76342.0,76341.0,0.00012576]
[1744156451423,0.566681,76342.0,76341.0,0.00012576]
[1744156451619,0.553583,76342.0,76341.0,0.00012576]
[1744156451997,0.344,76342.0,76341.0,0.22280976]
[1744156452120,0.344,76342.0,76341.0,0.00012576]
[1744156456602,0.004,76342.0,76341.0,0.22280976]
[1744156456976,0.004,76342.0,76341.0,0.39858804]
[1744156457180,0.004,76342.0,76341.0,0.3959684]
[1744156457381,0.002,76342.0,76341.0,0.3959684]
[1744156457771,0.002,76342.0,76341.0,0.3969684]
[1744156458098,0.549544,76357.0,76351.0,0.209557]
[1744156458301,0.209562,76350.0,76342.0,0.222678]
[1744156458463,0.209562,76350.0,76345.0,0.209572]
[1744156458661,0.209559,76351.0,76346.0,0.222669]
[1744156459719,0.209559,76351.0,76345.0,0.222672]
[1744156460132,0.210559,76351.0,76345.0,0.222672]
[1744156460376,0.210559,76351.0,76348.0,0.013097]
[1744156460377,0.002,76351.0,76348.0,0.013097]
[1744156460677,0.001,76351.0,76348.0,0.059497]
[1744156461251,0.34,76353.0,76348.0,0.059497]
[1744156461458,0.34,76352.0,76350.0,0.013097]
[1744156462471,0.342,76353.0,76349.0,0.209561]
[1744156462673,0.211555,76353.0,76349.0,0.209561]
[1744156462879,0.209552,76354.0,76348.0,0.059497]
[1744156463279,0.211559,76351.0,76345.0,0.222672]
[1744156463460,0.209564,76349.0,76345.0,0.222672]
[1744156463781,0.209575,76345.0,76341.0,0.00012576]
[1744156464976,0.209575,76345.0,76341.0,0.00112576]
[1744156465583,0.209572,76346.0,76341.0,0.21070976]
[1744156465783,0.013097,76348.0,76343.0,0.20958]
[1744156465784,0.209568,76348.0,76343.0,0.20958]
[1744156466016,0.22264,76357.0,76348.0,0.013097]
[1744156466354,0.209555,76353.0,76348.0,0.222661]
[1744156466791,0.353096,76356.0,76348.0,0.222661]
[1744156466792,0.34,76356.0,76354.0,0.013096]
[1744156466981,0.34,76356.0,76355.0,0.209547]
[1744156467184,0.34,76360.0,76356.0,0.209542]
[1744156467971,0.353095,76360.0,76351.0,0.222653]
[1744156468169,0.209536,76360.0,76355.0,0.013096]
[1744156468377,0.004,76356.0,76355.0,0.013096]
[1744156469368,0.004,76360.0,76355.0,0.18575464]
[1744156469592,0.004,76360.0,76359.0,0.222632]
[1744156469797,0.004,76360.0,76359.0,0.40807286]
[1744156469975,0.004,76360.0,76359.0,0.42994381]
[1744156470307,0.01309,76390.0,76383.0,0.222559]
[1744156470509,0.209453,76390.0,76384.0,0.222556]
[1744156470714,0.34,76389.0,76384.0,0.222556]
[1744156471013,0.01309,76389.0,76378.0,0.013092]
[1744156471175,0.222546,76389.0,76379.0,0.209481]
[1744156471376,0.013091,76385.0,76379.0,0.222573]
[1744156471794,0.013091,76385.0,76379.0,0.22269876]
[1744156471997,0.209467,76384.0,76379.0,0.22269876]
[1744156472622,0.211467,76385.0,76380.0,0.013092]
[1744156472821,0.002,76385.0,76381.0,0.013092]
[1744156473019,0.353091,76388.0,76382.0,0.222565]
[1744156473199,0.004,76384.0,76382.0,0.013092]
[1744156473560,0.002,76384.0,76381.0,0.013092]
[1744156474128,0.002,76384.0,76380.0,0.222568]
[1744156474316,0.003,76384.0,76380.0,0.222568]
[1744156474519,0.003,76384.0,76379.0,0.01321776]
[1744156474729,0.001,76384.0,76379.0,0.01321776]
[1744156475676,0.20947,76383.0,76379.0,0.01321776]
[1744156475884,0.209467,76385.0,76379.0,0.01321776]
[1744156476016,0.001,76384.0,76379.0,0.22269676]
[1744156476417,0.20947,76383.0,76379.0,0.00012576]
[1744156476614,0.11797528,76385.0,76379.0,0.00012576]
[1744156476816,0.34,76389.0,76382.0,0.209473]
[1744156477010,0.34,76389.0,76383.0,0.013091]
[1744156477217,0.209459,76388.0,76382.0,0.209473]
[1744156477474,0.34,76386.0,76381.0,0.222567]
[1744156478169,0.34,76386.0,76379.0,0.00012576]
[1744156478368,0.209475,76382.0,76379.0,0.00012576]
[1744156478575,0.013091,76386.0,76379.0,0.00012576]
[1744156479068,0.013091,76386.0,76379.0,0.22269876]
[1744156479477,0.013091,76386.0,76379.0,0.22369876]
[1744156479778,0.209468,76384.0,76379.0,0.00212576]
[1744156479923,0.209478,76381.0,76379.0,0.00212576]
[1744156480523,0.209478,76381.0,76379.0,0.00112576]
[1744156480726,0.209478,76381.0,76379.0,0.00212576]
[1744156481184,0.209478,76381.0,76379.0,0.00112576]
[1744156481553,0.209478,76381.0,76379.0,0.00212576]
[1744156481839,0.209444,76393.0,76385.0,0.013091]
[1744156481993,0.549455,76389.0,76381.0,0.209473]
[1744156482199,0.549455,76389.0,76383.0,0.209469]
[1744156482394,0.34,76386.0,76380.0,0.209478]
[1744156482600,0.353091,76386.0,76380.0,0.22257]
[1744156482940,0.34,76386.0,76381.0,0.222566]
[1744156483099,0.00128766,76385.0,76382.0,0.209471]
[1744156483422,0.00128766,76385.0,76382.0,0.222563]
[1744156485349,0.209478,76380.0,76379.0,0.00012576]
[1744156485534,0.56257,76380.0,76379.0,0.00012576]
[1744156485672,0.56375449,76380.0,76379.0,0.00012576]
[1744156486738,0.56575449,76380.0,76379.0,0.00012576]
[1744156487838,0.56575449,76380.0,76379.0,0.00112576]
[1744156488398,0.56575449,76380.0,76379.0,0.00012576]
[1744156488734,0.56875449,76380.0,76379.0,0.00012576]
[1744156490541,0.34618449,76380.0,76379.0,0.00012576]
[1744156492021,0.34618449,76380.0,76379.0,0.01321776]
[1744156492608,0.00618449,76380.0,76379.0,0.01321776]
[1744156492839,0.005,76380.0,76379.0,0.01321776]
[1744156493659,0.003,76380.0,76379.0,0.01321776]
[1744156493959,0.35355808,76390.0,76386.0,0.013091]
[1744156494169,0.01355808,76390.0,76388.0,0.222546]
[1744156494562,0.34,76396.0,76390.0,0.01309]
[1744156494786,0.34,76396.0,76391.0,0.209447]
[1744156495117,0.209439,76395.0,76391.0,0.209447]
[1744156495517,0.562525,76396.0,76391.0,0.222537]
[1744156495718,0.57604433,76396.0,76391.0,0.222537]
[1744156496168,0.57904433,76396.0,76391.0,0.222537]
[1744156496399,0.35651933,76396.0,76394.0,0.209438]
[1744156496592,0.209446,76392.0,76385.0,0.013091]
[1744156496732,0.222536,76392.0,76387.0,0.222548]
[1744156496934,0.222532,76394.0,76388.0,0.222546]
[1744156497138,0.222535,76393.0,76388.0,0.222546]
[1744156497780,0.001,76392.0,76389.0,0.209452]
[1744156498211,0.01309,76393.0,76389.0,0.209452]
[1744156498505,0.01509,76393.0,76389.0,0.209452]
[1744156498860,0.002,76393.0,76389.0,0.209452]
[1744156499233,0.002,76392.0,76389.0,0.209452]
[1744156499582,0.002,76392.0,76390.0,0.209449]
[1744156499787,0.002,76392.0,76391.0,0.01309]
[1744156500183,0.002,76392.0,76391.0,0.13934864]
[1744156500386,0.002,76392.0,76391.0,0.14196653]
[1744156500651,0.002,76392.0,76391.0,0.16648428]
[1744156500854,0.005,76393.0,76392.0,0.268036]
[1744156500855,1e-06,76393.0,76392.0,0.268036]
[1744156501054,1e-06,76393.0,76392.0,0.39429464]
[1744156501194,1e-06,76393.0,76392.0,0.41881239]
[1744156501805,0.01335323,76410.0,76409.0,0.222486]
[1744156502009,0.562466,76417.0,76409.0,0.222486]
[1744156502231,0.34,76415.0,76412.0,0.209391]
[1744156502607,0.34,76415.0,76409.0,0.222486]
[1744156502805,0.34,76413.0,76409.0,0.222486]
[1744156503147,0.34004208,76413.0,76411.0,0.222478]
[1744156503355,0.34004208,76413.0,76412.0,0.222477]
[1744156503552,0.34004208,76413.0,76412.0,0.013086]
[1744156504000,4.208e-05,76413.0,76411.0,0.222478]
[1744156504573,0.00204208,76413.0,76411.0,0.013087]
[1744156505049,0.01326826,76413.0,76410.0,0.209394]
[1744156505266,0.01326826,76413.0,76412.0,0.209391]
[1744156505462,0.01326826,76413.0,76410.0,0.222481]
[1744156506065,0.01326826,76413.0,76411.0,0.209392]
[1744156506272,6.539e-05,76412.0,76411.0,0.209392]
[1744156506669,0.01326826,76413.0,76411.0,0.222479]
[1744156506915,0.12959784,76440.0,76418.0,0.013085]
[1744156507135,0.12959784,76440.0,76412.0,0.013086]
[1744156507136,0.001,76413.0,76412.0,0.013086]
[1744156507291,0.21039,76413.0,76411.0,0.0455]
[1744156507491,0.013087,76411.0,76402.0,0.0455]
[1744156507731,0.013087,76411.0,76403.0,0.0244158]
[1744156507732,0.222503,76404.0,76403.0,0.0244158]
[1744156507933,0.01448525,76413.0,76411.0,0.209391]
[1744156508293,0.01348525,76413.0,76411.0,0.209391]
[1744156508631,0.013085,76418.0,76411.0,0.209391]
[1744156508632,0.34,76415.0,76411.0,0.013087]
[1744156508942,0.34,76415.0,76411.0,0.01321276]